Cogmind - Beta 13 @@@ ROGUE MODE // 2024.08.02 @ 00:45:37 Player: puppuppit Result: Destroyed by Piercing Trap Performance ------------- Evolutions (0) 0 Regions Visited (3) 600 Robots Destroyed (41) 205 Value Destroyed (746) 746 Prototype IDs (2) 40 Alien Tech Used (0) 0 Bonus (-156) -156 TOTAL SCORE: 1435 Bonus ------- Follower Combat Kills 14 Friendly Fire -170 Cogmind --------- Core Integrity 0/250 Matter 159/300 Energy 123/125 System Corruption 0% Temperature Cool (0) Movement Rolling (80) Location -10/Subcaves Parts ------- > --- POWER (1) -------- Light Ion Engine > --- PROPULSION (2) --- Wheel Wheel > --- UTILITY (2) ------ Medium Storage Unit Targeting Computer > --- WEAPON (2) ------- Autogun Autogun > --- INVENTORY (10) --- VTOL Module VTOL Module VTOL Module VTOL Module Autogun Autogun Grenade Launcher Peak State ------------ > --- POWER ------------ Light Ion Engine > --- PROPULSION ------- Wheel Wheel > --- UTILITY ---------- Small Storage Unit Structural Scanner > --- WEAPON ----------- Autogun Autogun > --- INVENTORY -------- Wheel Compact Wheel VTOL Module VTOL Module Weapon Shielding Assault Rifle Light Assault Rifle Grenade Launcher [Rating: 10] Favorites ----------- Power Light Ion Engine Engine Light Ion Engine Propulsion Wheel Wheel Wheel Utility Medium Storage Unit Device Structural Scanner Storage Medium Storage Unit Processor Targeting Computer Protection Weapon Shielding Weapon Autogun Energy Gun Medium Laser Ballistic Gun Autogun Ballistic Cannon Light Cannon Launcher Grenade Launcher Build | -11 -10 -10 -10 ------- Run | Yrd Mat Min Sub Slots Evolved . | . . . . Power . | . . . . Propulsion . | . . . . Utility . | . . . . Weapon . | . . . . Parts Attached 30 | 6 15 5 4 Power 2 | 1 1 . . Engine 2 | 1 1 . . Core . | . . . . Reactor . | . . . . Propulsion 10 | 2 4 2 2 Treads . | . . . . Leg . | . . . . Wheel 10 | 2 4 2 2 Hover . | . . . . Flight . | . . . . Utility 10 | 1 6 2 1 Device 2 | . 2 . . Storage 3 | 1 2 . . Processor 1 | . . . 1 Hackware . | . . . . Protection 4 | . 2 2 . Artifact . | . . . . Weapon 8 | 2 4 1 1 Energy Gun 2 | 1 1 . . Energy Cannon . | . . . . Ballistic Gun 4 | 1 2 . 1 Ballistic Cannon 1 | . 1 . . Launcher 1 | . . 1 . Special Weapon . | . . . . Impact Weapon . | . . . . Slashing Weapon . | . . . . Piercing Weapon . | . . . . Special Melee Weapon . | . . . . Unidentified Prototypes . | . . . . Parts Lost 4 | . 1 . 3 Power . | . . . . Propulsion 2 | . . . 2 Utility 1 | . . . 1 Weapon 1 | . 1 . . Highest Loss Streak 2 | . 1 . 2 To Critical Strikes . | . . . . Average Slot Usage (%) 96 | . 93 100 97 Engine 14 | . 14 14 14 Wheel 27 | . 28 28 27 Storage 14 | . 14 14 14 Processor 3 | . . . 9 Protection 6 | . 5 14 1 Energy Gun 2 | . 8 . . Ballistic Gun 22 | . 17 27 22 Launcher 2 | . . . 5 Naked Turns . | . . . . Heaviest Build 20 | 14 20 20 20 Greatest Support 32 | 32 32 20 20 Greatest Overweight (x) . | . . . . Average Overweight (x) . | . . . . Largest Inventory Capacity 10 | 8 10 10 10 Average Capacity 9 | 6 8 10 10 Most Carried 10 | 1 10 10 10 Average Carried 7 | . 4 9 7 Final Capacity 10 | 8 10 10 10 Final Carried 10 | 1 10 10 7 Class Distribution -------------------- 100% | Mutant Dominant Class ---------------- Mutant | -10/Materials Mutant | -10/Mines Mutant | -10/Subcaves Resources | -11 -10 -10 -10 ----------- Run | Yrd Mat Min Sub Matter Collected 1079 | 139 546 68 326 Remotely . | . . . . Salvage Created 1283 | . 672 253 358 Parts 78 | . 36 23 19 Haulers Intercepted 1 | . 1 . . Recyclers Shooed 6 | . 6 . . Parts Field Recycled . | . . . . Retrieved Matter . | . . . . Parts Self-Destructed 6 | . . . 6 Prevented . | . . . . Kills | -11 -10 -10 -10 ------- Run | Yrd Mat Min Sub Combat Hostiles Destroyed 21 | . 6 1 14 Guns 13 | . 6 1 6 AOE 8 | . . . 8 Classes Destroyed 10 | . 6 2 2 Worker 5 | . 5 . . Builder 4 | . 2 2 . Tunneler 2 | . . 2 . Hauler 1 | . 1 . . Recycler 5 | . 3 2 . Watcher 2 | . 2 . . Swarmer 6 | . . 1 5 Grunt 9 | . 6 . 3 Sentry 1 | . . . 1 Subdweller 6 | . . . 6 Best Kill Streak 6 | . 6 3 6 Combat Bots Only 6 | . 2 1 6 Max Kills in Single Turn 4 | . 1 1 4 Gunslinging . | . . . . Exploded 3 | . . . 3 Melee . | . . . . Uniques/NPCs Destroyed . | . . . . Combat | -11 -10 -10 -10 -------- Run | Yrd Mat Min Sub Hostile Shots Fired 110 | . 54 1 55 Missed 40 | . 17 . 23 Damage Taken 993 | . 445 35 513 Core 259 | . 143 . 116 Absorbed by Shields . | . . . . Redirected to Shielding 22 | . . . 22 Core Remaining (%) 100 | 100 . . . Volleys Fired 110 | . 64 14 32 Largest 2 | . 2 2 2 Hottest 70 | . 70 46 53 Shots Fired 209 | . 123 25 61 Gun 191 | . 123 22 46 Cannon . | . . . . Launcher 18 | . . 3 15 Special . | . . . . Kinetic 150 | . 82 22 46 Thermal 41 | . 41 . . Explosive 18 | . . 3 15 Electromagnetic . | . . . . Robot Hit Streak 14 | . 14 5 10 Robot Miss Streak 4 | . 4 3 4 Penetration Max . | . . . . Secondary Targets . | . . . . Shots Hit Robots 117 | . 67 13 37 Core Hits 66 | . 30 8 28 Critical Kills . | . . . . Critical Parts Destroyed . | . . . . Critical Strikes 3 | . 3 . . Burn 3 | . 3 . . Melee Attacks . | . . . . Impact . | . . . . Slashing . | . . . . Piercing . | . . . . Sneak Attacks . | . . . . Combat Hostiles . | . . . . Follow-up Attacks . | . . . . Damage Inflicted 2384 | . 919 311 1154 Guns 1537 | . 919 202 416 Cannons . | . . . . Explosions 847 | . . 109 738 Melee . | . . . . Ramming . | . . . . Kinetic 1214 | . 596 202 416 Thermal 323 | . 323 . . Explosive 847 | . . 109 738 Electromagnetic . | . . . . Impact . | . . . . Slashing . | . . . . Piercing . | . . . . Highest Corruption . | . . . . Average Corruption . | . . . . Corruption Purged . | . . . . Corruption Blocked . | . . . . Overload Shots . | . . . . Overflow Damage 7 | . . . 7 Projectiles . | . . . . Explosions 7 | . . . 7 Melee . | . . . . Knockbacks . | . . . . Impact . | . . . . Kinetic . | . . . . Secondary . | . . . . Self-Inflicted Damage 27 | . . 27 . Shots 1 | . . 1 . Rammed . | . . . . Targets Rammed . | . . . . Kicked . | . . . . Crushed . | . . . . Highest Temperature 378 | . 378 12 . Average Temperature 106 | . 117 5 . Received Heat Transfer 384 | . 252 . 132 Effects 1 | . 1 . . Interference 1 | . 1 . . Siege Activations . | . . . . Robots Corrupted . | . . . . Combat Hostiles . | . . . . Parts Fried . | . . . . Impact Corruptions . | . . . . Robots Melted . | . . . . Combat Hostiles . | . . . . Parts Melted 3 | . 3 . . Heat Transferred 1184 | . 1184 . . Parts Sabotaged . | . . . . Parts Stolen . | . . . . Parts Stripped . | . . . . Power Chain Reactions . | . . . . Alert | -11 -10 -10 -10 ------- Run | Yrd Mat Min Sub Peak Influence 209 | . 209 138 . Initial 20 | . . 20 . Average 74 | . 86 67 . Maximum Alert Level 1 | . 1 . . Low Security (%) 97 | 100 95 100 . Level 1 2 | . 4 . . Level 2 . | . . . . Level 3 . | . . . . Level 4 . | . . . . Level 5 . | . . . . High Security . | . . . . Max Security . | . . . . Squads Dispatched 4 | . 4 . . Investigation 3 | . 3 . . Extermination . | . . . . Reinforcement 1 | . 1 . . Assault . | . . . . Garrison . | . . . . Intercept . | . . . . Searches Triggered . | . . . . Construction Impeded . | . . . . Haulers Reinforced . | . . . . Active Scanning Responses . | . . . . Cargo Convoy Interrupts . | . . . . Stealth | -11 -10 -10 -10 --------- Run | Yrd Mat Min Sub Distress Signals . | . . . . Communications Jammed . | . . . . Distress Signals . | . . . . Times Spotted 29 | . 8 4 17 Peak Tracking Total 6 | . 2 3 6 Tactical Retreats 1 | . . . 1 Traps | -11 -10 -10 -10 ------- Run | Yrd Mat Min Sub Traps Triggered 1 | . . . 1 Indirectly . | . . . . Trap Hack Attempts . | . . . . Triggered . | . . . . Disarmed . | . . . . Reprogrammed . | . . . . Reused . | . . . . Traps Extracted . | . . . . Installed . | . . . . Triggered 1 | . . . 1 Machines | -11 -10 -10 -10 ---------- Run | Yrd Mat Min Sub Machines Disabled . | . . . . Max in Single Turn . | . . . . Machines Repaired . | . . . . Machines Dismantled . | . . . . Machines Sabotaged . | . . . . Overloaded Fab Kills . | . . . . Hacking | -11 -10 -10 -10 --------- Run | Yrd Mat Min Sub Machines Accessed 7 | . 5 1 1 Terminals 6 | . 5 1 . Fabricators . | . . . . Repair Stations . | . . . . Recycling Units . | . . . . Scanalyzers . | . . . . Garrison Access . | . . . . Total Hacks 27 | . 19 4 4 Successful 16 | . 9 3 4 Failed 11 | . 10 1 . Catastrophic 4 | . 3 1 . Database Lockouts . | . . . . Manual 24 | . 19 5 . Terminals 23 | . 19 4 . Fabricators . | . . . . Repair Stations . | . . . . Recycling Units . | . . . . Scanalyzers . | . . . . Garrison Access . | . . . . Terminal Hacks 16 | . 9 3 4 Record 4 | . . . 4 Robot Schematic 2 | . 1 1 . Robot Analysis 9 | . 7 2 . Prototype ID Bank 1 | . 1 . . Fabricator Hacks . | . . . . Repair Station Hacks . | . . . . Recycling Unit Hacks . | . . . . Scanalyzer . | . . . . Garrison Access Hacks . | . . . . Unauthorized Hacks . | . . . . Terminals . | . . . . Fabricators . | . . . . Repair Stations . | . . . . Recycling Units . | . . . . Scanalyzers . | . . . . Garrison Access . | . . . . Data Cores Recovered . | . . . . Used . | . . . . Hacking Detections 6 | . 5 1 . Full Trace Events 4 | . 4 . . Feedback Events . | . . . . Feedback Blocked . | . . . . Robot Schematics Acquired 2 | . 1 1 . Robots Built . | . . . . Authchips . | . . . . Time . | . . . . Total Robot Build Rating . | . . . . Part Schematics Acquired . | . . . . Parts Built . | . . . . Authchips . | . . . . Time . | . . . . Total Part Build Rating . | . . . . Parts Repaired . | . . . . Time . | . . . . Parts Recycled . | . . . . Recycled Matter . | . . . . Retrieved Matter . | . . . . Retrieved Components . | . . . . Parts Scanalyzed . | . . . . Part Schematics Acquired . | . . . . Parts Damaged . | . . . . Bothacking | -11 -10 -10 -10 ------------ Run | Yrd Mat Min Sub Used RIF Installer . | . . . . Robots Hacked . | . . . . Non-combat . | . . . . Combat . | . . . . Robot Hacks Applied . | . . . . Relay Couplers Released . | . . . . Fabnet Peak Effective % . | . . . . Robots Rewired . | . . . . Allies Hacked . | . . . . Hacks Repelled . | . . . . Allies | -11 -10 -10 -10 -------- Run | Yrd Mat Min Sub Total Allies 3 | . . 3 . Largest Group 3 | . . 3 2 Highest-Rated Group 40 | . . 40 32 Highest-Rated Ally 16 | . . 16 16 Total Orders . | . . . . Ally Attacks 9 | . . 8 1 Total Damage 74 | . . 56 18 Kills 2 | . . 2 . Allies Corrupted . | . . . . Allies Melted . | . . . . Intel | -11 -10 -10 -10 ------- Run | Yrd Mat Min Sub Robot Analysis Total 9 | . 7 2 . Derelict Logs Recovered 1 | . . 1 . Drone Launches . | . . . . Drone Recoveries . | . . . . Exploration | -11 -10 -10 -10 ------------- Run | Yrd Mat Min Sub Turns Passed 1509 | 47 533 431 498 Spaces Moved 1349 | 38 333 483 495 Core 1 | 1 . . . Treads . | . . . . Legs . | . . . . Wheels 1348 | 37 333 483 495 Hover . | . . . . Flight . | . . . . Fastest Speed 50 | 50 80 80 80 Average Speed 82 | 98 86 80 80 Slowest Speed 100 | 100 100 80 80 Overloaded Moves . | . . . . Propulsion Burnouts . | . . . . Robots Hopped . | . . . . Cave-ins Triggered . | . . . . Exploration Rate (%) 45 | 3 56 93 28 Regions Visited 3 Branch Regions 2 Pre-discovered Areas . | . . . . Known Exits Taken . | . . . . Unknown Exits Taken 3 | 1 1 1 . Scrap Searched 3 | . . 1 2 Spaces Dug . | . . . . Terrain Destroyed 77 | . . 18 59 Melee . | . . . . Projectile . | . . . . AOE 77 | . . 18 59 Terrain Rammed . | . . . . Walls Destroyed . | . . . . Machines Disabled . | . . . . Actions | -11 -10 -10 -10 --------- Run | Yrd Mat Min Sub Total 1567 | 44 471 507 545 Wait 37 | . 23 . 14 Move 1346 | 37 332 482 495 Hop . | . . . . Pick Up 19 | 1 17 1 . Fast Attach 14 | 6 6 2 . Attach 4 | . 1 . 3 Detach 2 | . 2 . . Swap 12 | . 8 3 1 Drop 23 | . 18 5 . Fire 110 | . 64 14 32 Melee . | . . . . Ram . | . . . . Kick . | . . . . Crush . | . . . . Escape Stasis . | . . . . Rewire . | . . . . Trap . | . . . . Miscellaneous . | . . . . Route ------- -11/Scrapyard -10/Materials (discovered 3 exits: [*Mat x2] / *Min) -10/Mines (discovered 3 exits: [*Mat x2] / *Sub) -10/Subcaves (discovered 1 exit: [*Rec]) History --------- Turn | Location | Event 8 | -11/Scrapyard | Discovered new exit (range 14) 48 | -11/Scrapyard | Entered Materials 235 | -10/Materials | Core integrity fell below 50% 284 | -10/Materials | Discovered new exit (range 15) 329 | -10/Materials | Build established: Mutant 481 | -10/Materials | Discovered new exit (range 10) 527 | -10/Materials | Discovered new exit (range 8) 581 | -10/Materials | Entered Mines 611 | -10/Mines | Met a Derelict bent on vengeance 658 | -10/Mines | A weapon hastily lodged in a ceiling crevice suddenly fell to the ground 684 | -10/Mines | Assisted by bots powering up and referring to "LRC-V3" 686 | -10/Mines | Learned Materials stockpile data 747 | -10/Mines | Joined a pair of Derelicts in attacking an 0b10 outpost 784 | -10/Mines | Discovered new exit (range 9) 903 | -10/Mines | Discovered new exit (range 6) 991 | -10/Mines | Discovered new exit (range 9) 1012 | -10/Mines | Entered Subcaves 1012 | -10/Subcaves | Accompanied by 2 allies 1058 | -10/Subcaves | Discovered new exit (range 13) 1081 | -10/Subcaves | Ambushed by Subdweller buried in earth 1092 | -10/Subcaves | Shifting Twisted Machinery released Sub. Beam Cannon 1170 | -10/Subcaves | Core integrity fell below 20% 1245 | -10/Subcaves | Visited Clippyterm 1248 | -10/Subcaves | Learned Factory fabricator intel 1248 | -10/Subcaves | Learned Factory trap positions 1510 | -10/Subcaves | Destroyed by Piercing Trap Last Messages --------------- 01343_ QM-Z6G(R) destroyed. 01382_ Acquired 10 matter. 01428_ Acquired 55 matter. 01435_ FW-4V1(R) destroyed. 01448_ Acquired 45 matter. 01466_ Subatomizers dissect the Sub. Monowheel. 01471_ Acquired 18 matter. 01504_ Searching scrap... 01504_ Found Battle Cannon. 01504_ Found Riot Gun. 01504_ Found 31 Matter. 01505_ Acquired 31 matter. 01506_ Acquired 15 matter. 01508_ Searching scrap... 01508_ Found Flamer. 01508_ Found Mak. Light Armor Plating. 01508_ Found 18 Matter. 01510_ Triggered Piercing Trap. 01510_ Spikes shoot up from the floor. 01510_ Critical hit (Impale). Map ----- +----------------------------------------------------+ | ?????????????????????????????????????????????????? | | ?????????????????????????????????????????????????? | | ?????????????????????????????????????????????????? | | ?????????????????????????????????????????????????? | | ?????????????????????????????????????????????????? | | ?????????????????????????????????????????????????? | | ?????????????????????????????????????????????????? | | ?????????????????????????????????????????????????? | | ?????????????????????????????????????????????????? | | ?????????????????????????????????????????????????? | | ?????????????????????????????????????????????????? | | ?????????????????????????????????????????????????? | | ?????????????????????????????????????????????????? | | ?????????????????????????????????????????????????? | | ?????????????????????????????????????????????????? | | ?????????????????????????????????????????????????? | | ?????????????????????????????????????????????????? | | ?????????????????????????????????????????????????? | | ?????????????????????????????????????????????????? | | ?????????????????????????????????????????????????? | | ?????????????????????????????????????????????????? | | ?????????????????????????????????????????????????? | | ??????????????????????#####??????????????????????? | | ??????????????????????+ #??????????????????????? | | ???????????#???????????#< #??????????????????????? | | ???????????#$###????####<@#??????????????????????? | | ???????????# ""#####!% [ #??????????????????????? | | ????????????#" # |] <#??????????????????????? | | ????????????#""## ##??????????????????????? | | ???????????????#" ##<<<#####????????????????????? | | ?????????????###< "###### #????????????????????? | | #??????????### < ### #?????###????????????? | | ##??????#### #???## ##???????????? | | ####### ### ##??## #???????????? | | ## ## ##???# #???????????? | | ##?? #???????????? | | ## # ### ##?? #????????????? | | ###### ####?## #??# ##???????????? | | #????#####?###### ##?## #???????????? | | #####??????# ### ### ### ###?????????? | | #######?###?# ### ##???????## | | ] ## ### ### ## #??????## | | & # ####?### | | ## ### ### # | | # # # # ### ### ### | | ###########?## ###?## # ## # # | | ?????????????####????# #### # # | | ?????????????????????## ### "" # | | ??????????????????????# #### " " # # | | | ??????????????????????###?## """ ###&] """" | +----------------------------------------------------+ Best States ------------- Heat Dissipation 25 Energy Generation 10 Energy Capacity 250 Matter Stores 300 Matter Capacity 300 Sight Range 16 Robot Scan Range 14 Terrain Scan Density 10 Propulsion Shielding 33 Weapon Shielding 33 Evasion (%) 44 Targeting Accuracy 5 Item Schematics ----------------- None Robot Schematics ------------------ O-16 Technician | -10/Materials | Hacked M-13 Machinist | -10/Mines | Hacked Fabricated ------------ Nothing Alien Tech Used ----------------- None Achievements -------------- None Challenges ------------ None Game ------ Seed SurgeThermoelectricCore Manual? 0 Play Time 00:22:19 Cumulative 438.7 hours Start 2024.08.02 @ 00:28:23 End 2024.08.02 @ 00:45:37 Sessions 1 Manual Loads 0 Difficulty Rogue Special Mode None Game No. 161 Rogue 161 Adventurer 0 Explorer 0 Win Type - Total 3 Types 0/0/2/1/0/0/0/0/0 Lore% 71 Gallery% 79 Achievement% 64 Wizard Run 0 Options --------- Layout 0 ASCII 0 Keyboard 1 Movement Arrows Keybinds 0 Fullscreen 1 Font 12/Proggy Map View 83x54 Zoom Use 0% Tactical HUD 1 Map Filters NONE Filters NONE Steam 0 RUN: 934a4e7e-a452-4354-a060-b1befc5e8c83